[Event "Live Chess"]
[Site "Chess.com"]
[Date "2023.05.20"]
[Round "-"]
[White "amazinggoalkeeper"]
[Black "Man-Del-Brot"]
[Result "0-1"]
[WhiteElo "499"]
[BlackElo "1174"]
[TimeControl "300"]
[EndTime "12:34:07 PDT"]
[Termination "Man-Del-Brot won by resignation"]

1. e4 {[%clk 0:04:58.7]} 1... e5 {[%clk 0:04:56.7]} 2. Nf3 {[%clk 0:04:57.4]}
2... Nc6 {[%clk 0:04:54.9]} 3. Bc4 {[%clk 0:04:52]} 3... f5 {[%clk 0:04:53.4]}
4. Qe2 {[%clk 0:04:47.4]} 4... Qe7 {[%clk 0:04:50]} 5. exf5 {[%clk 0:04:45.2]}
5... e4 {[%clk 0:04:44]} 6. Nh4 {[%clk 0:04:43.1]} 6... Nd4 {[%clk 0:04:39.5]}
7. f6 {[%clk 0:04:35.7]} 7... Nxf6 {[%clk 0:04:35.5]} 8. Qf1 {[%clk 0:04:33.5]}
8... Nxc2+ {[%clk 0:04:32.7]} 9. Ke2 {[%clk 0:04:28.8]} 9... Nxa1 {[%clk
0:04:30.5]} 10. Qe1 {[%clk 0:04:28.7]} 10... d5 {[%clk 0:04:23.9]} 11. b4 {[%clk
0:04:28.6]} 0-1

[Event "Live Chess"]
[Site "Chess.com"]
[Date "2023.05.20"]
[Round "-"]
[White "thrithik"]
[Black "zdanevych"]
[Result "0-1"]
[WhiteElo "380"]
[BlackElo "1514"]
[TimeControl "300"]
[EndTime "12:34:25 PDT"]
[Termination "zdanevych won by checkmate"]

1. e3 {[%clk 0:04:58.6]} 1... d5 {[%clk 0:04:59.1]} 2. f3 {[%clk 0:04:57.5]}
2... c5 {[%clk 0:04:57.8]} 3. d3 {[%clk 0:04:57.1]} 3... Nc6 {[%clk 0:04:56.6]}
4. Bd2 {[%clk 0:04:52.7]} 4... e5 {[%clk 0:04:56]} 5. Bc3 {[%clk 0:04:48.3]}
5... d4 {[%clk 0:04:54.6]} 6. exd4 {[%clk 0:04:45.1]} 6... exd4 {[%clk
0:04:54.5]} 7. Bxd4 {[%clk 0:04:42.1]} 7... Nxd4 {[%clk 0:04:53.1]} 8. c3 {[%clk
0:04:41.4]} 8... Qe7+ {[%clk 0:04:44.4]} 9. Be2 {[%clk 0:04:34.7]} 9... Nxe2
{[%clk 0:04:42.5]} 10. Nxe2 {[%clk 0:04:29.7]} 10... Nf6 {[%clk 0:04:40.7]} 11.
d4 {[%clk 0:04:24.6]} 11... cxd4 {[%clk 0:04:39.6]} 12. cxd4 {[%clk 0:04:22.5]}
12... Bd7 {[%clk 0:04:36.2]} 13. f4 {[%clk 0:04:16.2]} 13... Bb5 {[%clk
0:04:34.6]} 14. g4 {[%clk 0:04:14.2]} 14... Bxe2 {[%clk 0:04:33.4]} 15. Qxe2
{[%clk 0:04:09.8]} 15... Qxe2+ {[%clk 0:04:33.3]} 16. Kxe2 {[%clk 0:04:08]}
16... Nxg4 {[%clk 0:04:33.1]} 17. Kf3 {[%clk 0:04:05.9]} 17... Nf6 {[%clk
0:04:31.5]} 18. f5 {[%clk 0:04:01.5]} 18... O-O-O {[%clk 0:04:23.2]} 19. Re1
{[%clk 0:04:01.1]} 19... Rxd4 {[%clk 0:04:19.8]} 20. Rc1+ {[%clk 0:03:59.5]}
20... Kb8 {[%clk 0:04:15.1]} 21. Rc5 {[%clk 0:03:54]} 21... b6 {[%clk
0:04:11.3]} 22. Ke3 {[%clk 0:03:53]} 22... Bxc5 {[%clk 0:04:09.9]} 23. Nc3
{[%clk 0:03:47.2]} 23... Rd1+ {[%clk 0:04:06.1]} 24. Ke2 {[%clk 0:03:25.6]}
24... Rxa1 {[%clk 0:04:06]} 25. Nb5 {[%clk 0:03:16.9]} 25... Rxa2 {[%clk
0:04:03]} 26. Nd4 {[%clk 0:03:02.6]} 26... Bxd4 {[%clk 0:04:01.2]} 27. Kd2
{[%clk 0:02:58.6]} 27... Rxb2+ {[%clk 0:03:59.8]} 28. Kc1 {[%clk 0:02:56.8]}
28... Rc8+ {[%clk 0:03:57.4]} 29. Kd1 {[%clk 0:02:53.7]} 29... Rxh2 {[%clk
0:03:53.1]} 30. Ke1 {[%clk 0:02:51.8]} 30... Rc1# {[%clk 0:03:51.5]} 0-1

[Event "Live Chess"]
[Site "Chess.com"]
[Date "2023.05.20"]
[Round "-"]
[White "Ocelot32"]
[Black "Woodpusher500"]
[Result "1-0"]
[WhiteElo "1396"]
[BlackElo "1130"]
[TimeControl "300"]
[EndTime "12:34:28 PDT"]
[Termination "Ocelot32 won by resignation"]

1. e4 {[%clk 0:04:57.8]} 1... e5 {[%clk 0:04:55.2]} 2. Nf3 {[%clk 0:04:56.6]}
2... Nc6 {[%clk 0:04:49]} 3. Bb5 {[%clk 0:04:55]} 3... f5 {[%clk 0:04:46.4]} 4.
Bxc6 {[%clk 0:04:52]} 4... dxc6 {[%clk 0:04:42.6]} 5. Nc3 {[%clk 0:04:49.9]}
5... fxe4 {[%clk 0:04:35.6]} 6. Nxe4 {[%clk 0:04:47.8]} 6... Bg4 {[%clk
0:04:25.5]} 7. h3 {[%clk 0:04:40.6]} 7... Bh5 {[%clk 0:04:22.7]} 8. Ng3 {[%clk
0:04:40]} 8... Bg6 {[%clk 0:04:11.9]} 9. O-O {[%clk 0:04:38.6]} 9... Qf6 {[%clk
0:03:58.7]} 10. d4 {[%clk 0:04:26.5]} 10... e4 {[%clk 0:03:46.9]} 11. Ne5 {[%clk
0:04:23.5]} 11... O-O-O {[%clk 0:03:39.8]} 12. Qg4+ {[%clk 0:04:15.1]} 12... Kb8
{[%clk 0:03:34.8]} 13. Nxe4 {[%clk 0:04:10]} 13... Qf5 {[%clk 0:03:09.5]} 14.
Qxf5 {[%clk 0:03:49.3]} 14... Bxf5 {[%clk 0:03:06.2]} 15. Ng3 {[%clk 0:03:47.3]}
15... Be6 {[%clk 0:03:00.9]} 16. Bg5 {[%clk 0:03:42.4]} 16... Rxd4 {[%clk
0:02:49.4]} 17. Rad1 {[%clk 0:03:40.9]} 17... Rxd1 {[%clk 0:02:39.5]} 18. Rxd1
{[%clk 0:03:39.8]} 18... Bd6 {[%clk 0:02:37.9]} 19. Nd3 {[%clk 0:03:21.6]} 19...
Ne7 {[%clk 0:02:22.8]} 20. Nf4 {[%clk 0:03:14.9]} 20... Bf7 {[%clk 0:02:11.2]}
21. Bxe7 {[%clk 0:03:06.6]} 21... Bxe7 {[%clk 0:02:07.7]} 22. Rd7 {[%clk
0:03:04.9]} 22... Re8 {[%clk 0:01:59]} 23. Nf5 {[%clk 0:02:59.4]} 23... Bg6
{[%clk 0:01:18.1]} 24. Nxg6 {[%clk 0:02:51.8]} 24... hxg6 {[%clk 0:01:15.7]} 25.
Nxe7 {[%clk 0:02:47.9]} 25... Rf8 {[%clk 0:01:01.1]} 26. Nxg6 {[%clk 0:02:44.6]}
26... Re8 {[%clk 0:00:55.5]} 27. Rxg7 {[%clk 0:02:42.4]} 27... b6 {[%clk
0:00:52.1]} 28. Rf7 {[%clk 0:02:40.9]} 28... Re2 {[%clk 0:00:50.1]} 29. Ne7
{[%clk 0:02:22.6]} 29... Kb7 {[%clk 0:00:44.6]} 30. Rf6 {[%clk 0:02:19.2]} 30...
Rxc2 {[%clk 0:00:40.7]} 31. Nxc6 {[%clk 0:02:16.3]} 31... Rxc6 {[%clk
0:00:37.8]} 32. Rxc6 {[%clk 0:02:14.7]} 32... Kxc6 {[%clk 0:00:35.7]} 33. g4
{[%clk 0:02:14.2]} 1-0

[Event "Live Chess"]
[Site "Chess.com"]
[Date "2023.05.20"]
[Round "-"]
[White "DmitryVasliev"]
[Black "boilerboy1"]
[Result "1-0"]
[WhiteElo "1661"]
[BlackElo "1050"]
[TimeControl "300"]
[EndTime "12:34:30 PDT"]
[Termination "DmitryVasliev won on time"]

1. d4 {[%clk 0:04:58.4]} 1... g6 {[%clk 0:04:57.6]} 2. Bf4 {[%clk 0:04:53.9]}
2... Bg7 {[%clk 0:04:57]} 3. e3 {[%clk 0:04:50.9]} 3... Nf6 {[%clk 0:04:54.7]}
4. h3 {[%clk 0:04:50.2]} 4... Nd5 {[%clk 0:04:53]} 5. Bh2 {[%clk 0:04:48.2]}
5... c5 {[%clk 0:04:50.4]} 6. c3 {[%clk 0:04:44.6]} 6... cxd4 {[%clk 0:04:48.6]}
7. exd4 {[%clk 0:04:42.8]} 7... Nc6 {[%clk 0:04:46]} 8. Nd2 {[%clk 0:04:41.6]}
8... O-O {[%clk 0:04:43.2]} 9. Bd3 {[%clk 0:04:39.7]} 9... e6 {[%clk 0:04:38.6]}
10. f4 {[%clk 0:04:38.3]} 10... a6 {[%clk 0:04:33.7]} 11. Ngf3 {[%clk
0:04:34.9]} 11... Ne3 {[%clk 0:04:27.6]} 12. Qe2 {[%clk 0:04:34]} 12... Nd5
{[%clk 0:04:13.3]} 13. Nc4 {[%clk 0:04:19.9]} 13... d6 {[%clk 0:04:04.3]} 14.
Ne3 {[%clk 0:04:18.3]} 14... Nxe3 {[%clk 0:03:56.5]} 15. Qxe3 {[%clk 0:04:17.3]}
15... e5 {[%clk 0:03:53.4]} 16. fxe5 {[%clk 0:04:15.7]} 16... dxe5 {[%clk
0:03:51.3]} 17. dxe5 {[%clk 0:04:08.3]} 17... Re8 {[%clk 0:03:35.4]} 18. O-O-O
{[%clk 0:04:06.4]} 18... Qc7 {[%clk 0:03:26.6]} 19. Rhe1 {[%clk 0:03:52.4]}
19... Nb4 {[%clk 0:03:24.3]} 20. Bb1 {[%clk 0:03:49.4]} 20... Be6 {[%clk
0:03:13.4]} 21. a3 {[%clk 0:03:42.2]} 21... Na2+ {[%clk 0:03:03.9]} 22. Bxa2
{[%clk 0:03:39.9]} 22... Bxa2 {[%clk 0:03:02.7]} 23. Rd4 {[%clk 0:03:24.9]}
23... Rad8 {[%clk 0:02:45.6]} 24. Red1 {[%clk 0:03:13.7]} 24... Bb3 {[%clk
0:02:40.2]} 25. R1d2 {[%clk 0:03:11.6]} 25... Rxd4 {[%clk 0:02:33.5]} 26. Rxd4
{[%clk 0:03:03.1]} 26... b5 {[%clk 0:02:28.5]} 27. Kb1 {[%clk 0:02:59.5]} 27...
Bc4 {[%clk 0:02:20]} 28. g4 {[%clk 0:02:39.1]} 28... Qa5 {[%clk 0:02:17.2]} 29.
Nd2 {[%clk 0:02:26.5]} 29... Be6 {[%clk 0:01:58.7]} 30. Rb4 {[%clk 0:01:59.7]}
30... h5 {[%clk 0:01:43.3]} 31. gxh5 {[%clk 0:01:55.4]} 31... Bf5+ {[%clk
0:01:40.4]} 32. Ka1 {[%clk 0:01:48.3]} 32... Qc7 {[%clk 0:01:25.5]} 33. hxg6
{[%clk 0:01:40.5]} 33... Bxg6 {[%clk 0:01:23.2]} 34. Nf3 {[%clk 0:01:33.3]}
34... Qd7 {[%clk 0:01:13]} 35. Rd4 {[%clk 0:01:26.5]} 35... Qxh3 {[%clk
0:01:09.8]} 36. Ka2 {[%clk 0:01:19.7]} 36... Bh5 {[%clk 0:00:50]} 37. e6 {[%clk
0:01:08.5]} 37... Rxe6 {[%clk 0:00:42.1]} 38. Rd8+ {[%clk 0:01:03.7]} 38... Bf8
{[%clk 0:00:13.9]} 39. Qg5+ {[%clk 0:00:55.9]} 39... Rg6 {[%clk 0:00:12]} 40.
Qe7 {[%clk 0:00:53.7]} 40... Qe6+ {[%clk 0:00:00.6]} 41. Qxe6 {[%clk 0:00:52.2]}
1-0

[Event "Live Chess"]
[Site "Chess.com"]
[Date "2023.05.20"]
[Round "-"]
[White "JackRudd"]
[Black "Conradical12"]
[Result "1-0"]
[WhiteElo "2460"]
[BlackElo "1575"]
[TimeControl "300"]
[EndTime "12:34:37 PDT"]
[Termination "JackRudd won by resignation"]

1. d4 {[%clk 0:04:58.9]} 1... Nf6 {[%clk 0:04:57.5]} 2. c4 {[%clk 0:04:57.6]}
2... e5 {[%clk 0:04:57]} 3. dxe5 {[%clk 0:04:56]} 3... Ng4 {[%clk 0:04:56.2]} 4.
Nf3 {[%clk 0:04:55.2]} 4... Bc5 {[%clk 0:04:55]} 5. e3 {[%clk 0:04:53.2]} 5...
O-O {[%clk 0:04:48.2]} 6. h3 {[%clk 0:04:50]} 6... Nh6 {[%clk 0:04:40.1]} 7. Nc3
{[%clk 0:04:48.5]} 7... Nc6 {[%clk 0:04:38.5]} 8. Ne4 {[%clk 0:04:43.8]} 8...
Bb4+ {[%clk 0:04:29.7]} 9. Bd2 {[%clk 0:04:42.7]} 9... Bxd2+ {[%clk 0:04:27.6]}
10. Qxd2 {[%clk 0:04:41.5]} 10... Nf5 {[%clk 0:04:26.3]} 11. g4 {[%clk
0:04:38.9]} 1-0

[Event "Live Chess"]
[Site "Chess.com"]
[Date "2023.05.20"]
[Round "-"]
[White "ViktorTheCoolBoy"]
[Black "ameetghasi100"]
[Result "1/2-1/2"]
[WhiteElo "2532"]
[BlackElo "2703"]
[TimeControl "300"]
[EndTime "12:34:43 PDT"]
[Termination "Game drawn by repetition"]

1. d4 {[%clk 0:04:56.8]} 1... Nf6 {[%clk 0:04:58]} 2. c4 {[%clk 0:04:55.7]} 2...
e6 {[%clk 0:04:57.9]} 3. g3 {[%clk 0:04:54.6]} 3... c5 {[%clk 0:04:56.5]} 4. Nf3
{[%clk 0:04:53.7]} 4... cxd4 {[%clk 0:04:53.7]} 5. Nxd4 {[%clk 0:04:53.6]} 5...
Bb4+ {[%clk 0:04:51.8]} 6. Bd2 {[%clk 0:04:51.4]} 6... Bc5 {[%clk 0:04:51.3]} 7.
Nb3 {[%clk 0:04:49.5]} 7... Be7 {[%clk 0:04:46.4]} 8. Bg2 {[%clk 0:04:48.1]}
8... h5 {[%clk 0:04:45.2]} 9. h3 {[%clk 0:04:45.5]} 9... Nc6 {[%clk 0:04:44]}
10. Nc3 {[%clk 0:04:43.9]} 10... Ne5 {[%clk 0:04:41.7]} 11. c5 {[%clk
0:04:37.3]} 11... Nc4 {[%clk 0:04:40.5]} 12. Bc1 {[%clk 0:04:36]} 12... d5
{[%clk 0:04:39]} 13. cxd6 {[%clk 0:04:33.9]} 13... Qxd6 {[%clk 0:04:37.3]} 14.
O-O {[%clk 0:04:32]} 14... a6 {[%clk 0:04:32]} 15. Qc2 {[%clk 0:04:27.4]} 15...
Qc7 {[%clk 0:03:58.3]} 16. Bf4 {[%clk 0:04:24.1]} 16... e5 {[%clk 0:03:57.2]}
17. Bg5 {[%clk 0:04:22.6]} 17... Be6 {[%clk 0:03:56.8]} 18. Rac1 {[%clk
0:04:20.6]} 18... Nb6 {[%clk 0:03:51.3]} 19. Bxf6 {[%clk 0:04:15.4]} 19... gxf6
{[%clk 0:03:46.5]} 20. Ne4 {[%clk 0:04:12.2]} 20... Qxc2 {[%clk 0:03:43.8]} 21.
Rxc2 {[%clk 0:04:11]} 21... Nd5 {[%clk 0:03:29.2]} 22. Nec5 {[%clk 0:03:58.6]}
22... Rc8 {[%clk 0:03:19.4]} 23. a3 {[%clk 0:03:25.4]} 23... Nb6 {[%clk
0:03:04]} 24. Rfc1 {[%clk 0:03:20.1]} 24... Bf5 {[%clk 0:02:43.5]} 25. e4 {[%clk
0:03:13.4]} 25... Bd7 {[%clk 0:02:09.2]} 26. Na5 {[%clk 0:02:58.4]} 26... Bxc5
{[%clk 0:01:59.1]} 27. Rxc5 {[%clk 0:02:57.6]} 27... Rxc5 {[%clk 0:01:58.8]} 28.
Rxc5 {[%clk 0:02:56.9]} 28... Ke7 {[%clk 0:01:58.3]} 29. Nxb7 {[%clk 0:02:49]}
29... Rb8 {[%clk 0:01:57.4]} 30. Na5 {[%clk 0:02:45.1]} 30... Na4 {[%clk
0:01:56.2]} 31. Nc6+ {[%clk 0:02:44.4]} 31... Bxc6 {[%clk 0:01:47.7]} 32. Rxc6
{[%clk 0:02:44.3]} 32... Rxb2 {[%clk 0:01:43.3]} 33. Rxa6 {[%clk 0:02:43.2]}
33... Rb1+ {[%clk 0:01:42.3]} 34. Kh2 {[%clk 0:02:41.5]} 34... Nc5 {[%clk
0:01:32.4]} 35. Ra7+ {[%clk 0:02:40.4]} 35... Kf8 {[%clk 0:01:30.9]} 36. Bf3
{[%clk 0:02:38.7]} 36... Rb2 {[%clk 0:01:14.9]} 37. Kg1 {[%clk 0:02:34.7]} 37...
h4 {[%clk 0:01:08.4]} 38. gxh4 {[%clk 0:02:32.9]} 38... Rb3 {[%clk 0:00:47.7]}
39. Bh5 {[%clk 0:02:25.4]} 39... Rxh3 {[%clk 0:00:43.9]} 40. Bxf7 {[%clk
0:02:24.4]} 40... Rxh4 {[%clk 0:00:42.1]} 41. Bd5 {[%clk 0:02:22.8]} 41... Nxe4
{[%clk 0:00:40.6]} 42. Bxe4 {[%clk 0:01:45.3]} 42... Rxe4 {[%clk 0:00:39.1]} 43.
a4 {[%clk 0:01:44.9]} 43... Ke8 {[%clk 0:00:34.5]} 44. a5 {[%clk 0:01:43.9]}
44... Kd8 {[%clk 0:00:34.1]} 45. Kg2 {[%clk 0:01:39]} 45... Kc8 {[%clk
0:00:31.1]} 46. Rf7 {[%clk 0:01:33]} 46... Rf4 {[%clk 0:00:30.4]} 47. a6 {[%clk
0:01:32]} 47... Kb8 {[%clk 0:00:29.9]} 48. a7+ {[%clk 0:01:29.8]} 48... Ka8
{[%clk 0:00:29.4]} 49. f3 {[%clk 0:01:28.6]} 49... Rf5 {[%clk 0:00:27.2]} 50.
Kg3 {[%clk 0:01:26.5]} 50... Rf4 {[%clk 0:00:26.7]} 51. Kg2 {[%clk 0:01:25.9]}
51... Rf5 {[%clk 0:00:26.1]} 52. Kg3 {[%clk 0:01:25.3]} 52... Rf4 {[%clk
0:00:25.8]} 53. Kg2 {[%clk 0:01:24.6]} 1/2-1/2

[Event "Live Chess"]
[Site "Chess.com"]
[Date "2023.05.20"]
[Round "-"]
[White "f4nomore"]
[Black "lateforthesky"]
[Result "0-1"]
[WhiteElo "1372"]
[BlackElo "2090"]
[TimeControl "300"]
[EndTime "12:34:59 PDT"]
[Termination "lateforthesky won on time"]

1. d4 {[%clk 0:04:58.1]} 1... Nf6 {[%clk 0:04:57.8]} 2. Bg5 {[%clk 0:04:55.4]}
2... Ne4 {[%clk 0:04:55.5]} 3. Bh4 {[%clk 0:04:50.9]} 3... c5 {[%clk 0:04:50.3]}
4. d5 {[%clk 0:04:47.2]} 4... g5 {[%clk 0:04:36.5]} 5. Bg3 {[%clk 0:04:40.7]}
5... Bg7 {[%clk 0:04:35.7]} 6. c3 {[%clk 0:04:22.4]} 6... d6 {[%clk 0:04:26.6]}
7. Nf3 {[%clk 0:04:12.8]} 7... h5 {[%clk 0:04:23.4]} 8. Nfd2 {[%clk 0:04:09.3]}
8... Bf5 {[%clk 0:04:18.1]} 9. Nxe4 {[%clk 0:04:06.6]} 9... Bxe4 {[%clk
0:04:16.6]} 10. f3 {[%clk 0:04:03.8]} 10... Bg6 {[%clk 0:04:09.5]} 11. e4 {[%clk
0:04:01]} 11... Nd7 {[%clk 0:03:59.3]} 12. Be2 {[%clk 0:03:56.7]} 12... Qb6
{[%clk 0:03:46.9]} 13. O-O {[%clk 0:03:34]} 13... Qxb2 {[%clk 0:03:38.6]} 14.
Nd2 {[%clk 0:03:31]} 14... Qxc3 {[%clk 0:03:32.7]} 15. Rb1 {[%clk 0:03:22]}
15... Rb8 {[%clk 0:02:38.5]} 16. Rb3 {[%clk 0:03:09.9]} 16... Qa5 {[%clk
0:02:36.1]} 17. Be1 {[%clk 0:03:04.1]} 17... Qc7 {[%clk 0:02:34.2]} 18. Nc4
{[%clk 0:02:58]} 18... O-O {[%clk 0:02:30]} 19. Qb1 {[%clk 0:02:50.2]} 19... Ne5
{[%clk 0:02:21.1]} 20. Na5 {[%clk 0:02:31.9]} 20... b6 {[%clk 0:02:18.4]} 21.
Nc4 {[%clk 0:02:15.5]} 21... Nxc4 {[%clk 0:02:17.2]} 22. Bxc4 {[%clk 0:02:13.4]}
22... Kh7 {[%clk 0:02:14.4]} 23. a4 {[%clk 0:02:11.2]} 23... Bd4+ {[%clk
0:02:10]} 24. Kh1 {[%clk 0:02:01.1]} 24... Rbe8 {[%clk 0:02:07.9]} 25. a5 {[%clk
0:01:49.2]} 25... Rb8 {[%clk 0:01:40.3]} 26. axb6 {[%clk 0:01:42.2]} 26... Rxb6
{[%clk 0:01:37.1]} 27. Rxb6 {[%clk 0:01:17.3]} 27... Qxb6 {[%clk 0:01:35.4]} 28.
Qxb6 {[%clk 0:01:06.1]} 28... axb6 {[%clk 0:01:35.3]} 29. Bb5 {[%clk 0:01:04.4]}
29... Ra8 {[%clk 0:01:33.4]} 30. Bd2 {[%clk 0:00:54.7]} 30... Bf6 {[%clk
0:01:26.6]} 31. Bc6 {[%clk 0:00:44.4]} 31... Ra2 {[%clk 0:01:24.1]} 32. Be3
{[%clk 0:00:40.1]} 32... Re2 {[%clk 0:01:13]} 33. Bg1 {[%clk 0:00:31.2]} 33...
Kg7 {[%clk 0:01:11.7]} 34. h3 {[%clk 0:00:30.2]} 34... Be5 {[%clk 0:01:02]} 35.
Rb1 {[%clk 0:00:24.4]} 35... g4 {[%clk 0:00:55.8]} 36. hxg4 {[%clk 0:00:15.3]}
36... hxg4 {[%clk 0:00:54.7]} 37. Rxb6 {[%clk 0:00:01.6]} 37... gxf3 {[%clk
0:00:53]} 0-1

[Event "Live Chess"]
[Site "Chess.com"]
[Date "2023.05.20"]
[Round "-"]
[White "MrDodgy"]
[Black "omisoc"]
[Result "1-0"]
[WhiteElo "2286"]
[BlackElo "2185"]
[TimeControl "300"]
[EndTime "12:35:06 PDT"]
[Termination "MrDodgy won by resignation"]

1. e4 {[%clk 0:04:58]} 1... b6 {[%clk 0:04:58.6]} 2. d4 {[%clk 0:04:54.1]} 2...
Bb7 {[%clk 0:04:57.6]} 3. Nc3 {[%clk 0:04:52.1]} 3... e6 {[%clk 0:04:55.8]} 4.
Nf3 {[%clk 0:04:48.2]} 4... Bb4 {[%clk 0:04:54.2]} 5. Bd3 {[%clk 0:04:46.8]}
5... Nf6 {[%clk 0:04:52.8]} 6. e5 {[%clk 0:04:45.4]} 6... Nd5 {[%clk 0:04:50.3]}
7. Bd2 {[%clk 0:04:44.2]} 7... Nxc3 {[%clk 0:04:47.4]} 8. bxc3 {[%clk
0:04:42.1]} 8... Be7 {[%clk 0:04:46.7]} 9. Qe2 {[%clk 0:04:40]} 9... O-O {[%clk
0:04:45.4]} 10. h4 {[%clk 0:04:37]} 10... d6 {[%clk 0:04:44.1]} 11. Bxh7+ {[%clk
0:04:31.6]} 11... Kxh7 {[%clk 0:04:36]} 12. Ng5+ {[%clk 0:04:30.2]} 1-0

[Event "Live Chess"]
[Site "Chess.com"]
[Date "2023.05.20"]
[Round "-"]
[White "LodeshChess"]
[Black "EdenHazard8"]
[Result "0-1"]
[WhiteElo "1000"]
[BlackElo "2089"]
[TimeControl "300"]
[EndTime "12:35:21 PDT"]
[Termination "EdenHazard8 won by resignation"]

1. e4 {[%clk 0:04:58.7]} 1... e5 {[%clk 0:04:59.3]} 2. Nf3 {[%clk 0:04:57.9]}
2... Nc6 {[%clk 0:04:56.3]} 3. c3 {[%clk 0:04:57.5]} 3... Nf6 {[%clk 0:04:54]}
4. d4 {[%clk 0:04:57.1]} 4... exd4 {[%clk 0:04:53]} 5. e5 {[%clk 0:04:55.8]}
5... Nd5 {[%clk 0:04:51.5]} 6. Qb3 {[%clk 0:04:53.8]} 6... Nb6 {[%clk 0:04:48]}
7. cxd4 {[%clk 0:04:52.8]} 7... d5 {[%clk 0:04:45.8]} 8. Bb5 {[%clk 0:04:49.4]}
8... Be6 {[%clk 0:04:43.9]} 9. Bxc6+ {[%clk 0:04:43.1]} 9... bxc6 {[%clk
0:04:43.8]} 10. O-O {[%clk 0:04:42]} 10... Be7 {[%clk 0:04:42.7]} 11. Nc3 {[%clk
0:04:39.6]} 11... O-O {[%clk 0:04:41.4]} 12. Qc2 {[%clk 0:04:36.2]} 12... c5
{[%clk 0:04:39.5]} 13. Be3 {[%clk 0:04:25.6]} 13... cxd4 {[%clk 0:04:38]} 14.
Bxd4 {[%clk 0:04:24.5]} 14... c5 {[%clk 0:04:37.9]} 15. Be3 {[%clk 0:03:57.5]}
15... d4 {[%clk 0:04:36.6]} 16. Ng5 {[%clk 0:03:57]} 16... Bxg5 {[%clk
0:04:32.7]} 17. Bxg5 {[%clk 0:03:51.2]} 17... Qxg5 {[%clk 0:04:32.6]} 18. Ne4
{[%clk 0:03:50.3]} 18... Qg6 {[%clk 0:04:31.1]} 19. Qe2 {[%clk 0:03:42.3]} 19...
Bd5 {[%clk 0:04:30.1]} 20. Ng3 {[%clk 0:03:37]} 20... f5 {[%clk 0:04:27.3]} 21.
exf6 {[%clk 0:03:31.7]} 21... Rxf6 {[%clk 0:04:25.4]} 22. b3 {[%clk 0:03:18.4]}
22... Raf8 {[%clk 0:04:22.6]} 23. Qa6 {[%clk 0:03:05.7]} 23... h5 {[%clk
0:04:17.8]} 24. Qxa7 {[%clk 0:02:44]} 24... h4 {[%clk 0:04:14]} 25. Rae1 {[%clk
0:02:26.4]} 25... hxg3 {[%clk 0:04:12.6]} 26. fxg3 {[%clk 0:02:22.4]} 26... R6f7
{[%clk 0:04:11.3]} 27. Rxf7 {[%clk 0:02:17.6]} 27... Rxf7 {[%clk 0:04:08.8]} 28.
Re8+ {[%clk 0:01:50.4]} 28... Kh7 {[%clk 0:04:04.9]} 29. Re7 {[%clk 0:01:47.3]}
29... Qb1+ {[%clk 0:04:03]} 0-1

[Event "Live Chess"]
[Site "Chess.com"]
[Date "2023.05.20"]
[Round "-"]
[White "Ian-Morley"]
[Black "gmnorfolk"]
[Result "0-1"]
[WhiteElo "1003"]
[BlackElo "2053"]
[TimeControl "300"]
[EndTime "12:35:22 PDT"]
[Termination "gmnorfolk won by checkmate"]

1. e4 {[%clk 0:04:55.9]} 1... e5 {[%clk 0:04:50.6]} 2. Nf3 {[%clk 0:04:53.2]}
2... Nc6 {[%clk 0:04:50.2]} 3. Bc4 {[%clk 0:04:50.8]} 3... Nf6 {[%clk
0:04:47.9]} 4. Ng5 {[%clk 0:04:49.1]} 4... d5 {[%clk 0:04:46.3]} 5. exd5 {[%clk
0:04:48.2]} 5... Na5 {[%clk 0:04:43.3]} 6. Bb5+ {[%clk 0:04:43]} 6... c6 {[%clk
0:04:42.5]} 7. dxc6 {[%clk 0:04:41.8]} 7... bxc6 {[%clk 0:04:42.1]} 8. Qf3
{[%clk 0:04:40.3]} 8... Rb8 {[%clk 0:04:38.3]} 9. Bxc6+ {[%clk 0:04:32]} 9...
Nxc6 {[%clk 0:04:38.2]} 10. Qxc6+ {[%clk 0:04:28.4]} 10... Nd7 {[%clk
0:04:35.9]} 11. Nf3 {[%clk 0:03:51.8]} 11... Bb7 {[%clk 0:04:31.8]} 12. Qa4
{[%clk 0:03:23]} 12... Bd6 {[%clk 0:04:22]} 13. d4 {[%clk 0:03:16.7]} 13... O-O
{[%clk 0:04:18.5]} 14. dxe5 {[%clk 0:03:12.9]} 14... Bxf3 {[%clk 0:04:01.5]} 15.
gxf3 {[%clk 0:03:09.1]} 15... Nxe5 {[%clk 0:03:56.1]} 16. f4 {[%clk 0:03:03.8]}
16... Rb4 {[%clk 0:03:51]} 17. Qa6 {[%clk 0:02:54.1]} 17... Re4+ {[%clk
0:03:47.4]} 18. Be3 {[%clk 0:02:52]} 18... Nc4 {[%clk 0:03:42.6]} 19. Qxa7
{[%clk 0:02:44.8]} 19... Rfe8 {[%clk 0:03:24.6]} 20. Nd2 {[%clk 0:02:42.2]}
20... Bb4 {[%clk 0:03:21.3]} 21. c3 {[%clk 0:02:40.2]} 21... Rxe3+ {[%clk
0:03:13.1]} 22. fxe3 {[%clk 0:02:37.7]} 22... Qxd2+ {[%clk 0:03:11]} 23. Kf1
{[%clk 0:02:34.7]} 23... Nxe3+ {[%clk 0:03:08.7]} 24. Kg1 {[%clk 0:02:32.8]}
24... Qg2# {[%clk 0:03:07.1]} 0-1

[Event "Live Chess"]
[Site "Chess.com"]
[Date "2023.05.20"]
[Round "-"]
[White "LiamBellwood"]
[Black "TheSmoulderingMaster"]
[Result "1-0"]
[WhiteElo "2059"]
[BlackElo "1729"]
[TimeControl "300"]
[EndTime "12:35:25 PDT"]
[Termination "LiamBellwood won by resignation"]

1. d4 {[%clk 0:04:59]} 1... Nf6 {[%clk 0:04:58.1]} 2. Nc3 {[%clk 0:04:58.7]}
2... d6 {[%clk 0:04:57.4]} 3. Bf4 {[%clk 0:04:56.9]} 3... g6 {[%clk 0:04:56.5]}
4. e4 {[%clk 0:04:56.6]} 4... Bg7 {[%clk 0:04:55.9]} 5. Qd2 {[%clk 0:04:55.4]}
5... O-O {[%clk 0:04:55.1]} 6. O-O-O {[%clk 0:04:55.1]} 6... c6 {[%clk
0:04:54.2]} 7. Bh6 {[%clk 0:04:54.2]} 7... b5 {[%clk 0:04:53.1]} 8. f3 {[%clk
0:04:53.1]} 8... a5 {[%clk 0:04:50.4]} 9. h4 {[%clk 0:04:51.5]} 9... a4 {[%clk
0:04:49.8]} 10. h5 {[%clk 0:04:48.5]} 10... b4 {[%clk 0:04:46.1]} 11. Nce2
{[%clk 0:04:46.4]} 11... b3 {[%clk 0:04:44.4]} 12. cxb3 {[%clk 0:04:43.6]} 12...
axb3 {[%clk 0:04:42.4]} 13. a3 {[%clk 0:04:43.3]} 13... Qa5 {[%clk 0:04:34.1]}
14. Nc3 {[%clk 0:04:41.2]} 14... Na6 {[%clk 0:04:27.5]} 15. Bxg7 {[%clk
0:04:36.2]} 15... Kxg7 {[%clk 0:04:26.6]} 16. hxg6 {[%clk 0:04:34.6]} 16... fxg6
{[%clk 0:04:26.1]} 17. Qh6+ {[%clk 0:04:33.7]} 17... Kf7 {[%clk 0:04:25.3]} 18.
Bc4+ {[%clk 0:04:12.4]} 18... d5 {[%clk 0:04:22.8]} 19. Bxb3 {[%clk 0:04:00.6]}
19... Rb8 {[%clk 0:04:19.6]} 20. Ba2 {[%clk 0:03:54.2]} 20... Qb6 {[%clk
0:04:12.2]} 21. Rd2 {[%clk 0:03:52.2]} 21... Ke8 {[%clk 0:03:59.4]} 22. e5
{[%clk 0:03:36.7]} 22... Nd7 {[%clk 0:03:52.7]} 23. Qxh7 {[%clk 0:03:33.5]}
23... Qa5 {[%clk 0:03:50.4]} 24. Qxg6+ {[%clk 0:03:31.2]} 24... Kd8 {[%clk
0:03:48.9]} 25. Qxc6 {[%clk 0:03:21.1]} 25... Bb7 {[%clk 0:03:43.9]} 26. Qb5
{[%clk 0:02:52.6]} 26... Qc7 {[%clk 0:03:40.2]} 27. Kd1 {[%clk 0:02:33.5]} 27...
Bc8 {[%clk 0:03:37.3]} 28. Qxd5 {[%clk 0:02:24.8]} 28... Rxb2 {[%clk 0:03:32.3]}
29. Rxb2 {[%clk 0:02:18.9]} 29... Qxc3 {[%clk 0:03:31.1]} 30. Rc2 {[%clk
0:02:15.5]} 30... Qa1+ {[%clk 0:03:22.3]} 31. Kd2 {[%clk 0:02:12.5]} 31... Rf4
{[%clk 0:03:10.3]} 32. Rh8+ {[%clk 0:02:03.6]} 1-0